[Event "Titled Tuesday Blitz April 19 Early 2022"]
[White "Bilan, Danila"]
[Black "Muradov, Soltan"]
[WhiteFideId "24161918"]
[BlackFideId "14002108"]
[WhiteElo "2164"]
[BlackElo "1854"]
[Result "0-1"]
[Round "01"]
[TimeControl "180+1"]
[Date "2022.04.19"]
[WhiteClock "0:00:08"]
[BlackClock "0:00:06"]

1. d4 {[%clk 0:02:58]}  Nf6 {[%clk 0:02:58]} 2. Nf3 {[%clk 0:02:59]}  e6 {[%clk 0:02:58]} 3. g3 {[%clk 0:02:57]}  b6 {[%clk 0:02:58]} 4. Bg2 {[%clk 0:02:57]}  Bb7 {[%clk 0:02:59]} 5. O-O {[%clk 0:02:58]}  c5 {[%clk 0:03:00]} 6. c4 {[%clk 0:02:56]}  cxd4 {[%clk 0:03:00]} 7. Nxd4 {[%clk 0:02:57]}  Bxg2 {[%clk 0:03:01]} 8. Kxg2 {[%clk 0:02:58]}  Qc8 {[%clk 0:03:01]} 9. b3 {[%clk 0:02:57]}  Qb7+ {[%clk 0:03:02]} 10. f3 {[%clk 0:02:53]}  a6 {[%clk 0:03:03]} 11. Bb2 {[%clk 0:02:52]}  d6 {[%clk 0:03:03]} 12. Nc3 {[%clk 0:02:50]}  Nbd7 {[%clk 0:03:03]} 13. e4 {[%clk 0:02:49]}  Be7 {[%clk 0:03:04]} 14. Qe2 {[%clk 0:02:45]}  O-O {[%clk 0:03:04]} 15. Rfd1 {[%clk 0:02:45]}  Rac8 {[%clk 0:03:04]} 16. Rac1 {[%clk 0:02:41]}  Rfd8 {[%clk 0:03:04]} 17. Nc2 {[%clk 0:02:21]}  h6 {[%clk 0:02:51]} 18. Ne3 {[%clk 0:02:18]}  Nc5 {[%clk 0:02:51]} 19. b4 {[%clk 0:01:59]}  Ncd7 {[%clk 0:02:50]} 20. a3 {[%clk 0:01:56]}  Ne5 {[%clk 0:02:44]} 21. Nb1 {[%clk 0:01:35]}  Nfd7 {[%clk 0:02:20]} 22. Nd2 {[%clk 0:01:29]}  b5 {[%clk 0:02:19]} 23. f4 {[%clk 0:01:17]}  Nxc4 {[%clk 0:02:05]} 24. Nexc4 {[%clk 0:01:10]}  bxc4 {[%clk 0:02:05]} 25. Nxc4 {[%clk 0:01:07]}  Nb6 {[%clk 0:01:55]} 26. Na5 {[%clk 0:01:00]}  Qa8 {[%clk 0:01:53]} 27. Kh3 {[%clk 0:00:37]}  Bf8 {[%clk 0:01:48]} 28. Bd4 {[%clk 0:00:33]}  Nd7 {[%clk 0:01:24]} 29. Qd3 {[%clk 0:00:26]}  Rxc1 {[%clk 0:01:16]} 30. Rxc1 {[%clk 0:00:26]}  Rc8 {[%clk 0:01:17]} 31. Rxc8 {[%clk 0:00:25]}  Qxc8 {[%clk 0:01:18]} 32. Qc4 {[%clk 0:00:25]}  Qa8 {[%clk 0:00:25]} 33. Qc6 {[%clk 0:00:24]}  Qxc6 {[%clk 0:00:26]} 34. Nxc6 {[%clk 0:00:25]}  g5 {[%clk 0:00:26]} 35. f5 {[%clk 0:00:20]}  h5 {[%clk 0:00:20]} 36. g4 {[%clk 0:00:19]}  h4 {[%clk 0:00:14]} 37. Kg2 {[%clk 0:00:19]}  d5 {[%clk 0:00:10]} 38. exd5 {[%clk 0:00:16]}  exd5 {[%clk 0:00:11]} 39. Kf3 {[%clk 0:00:16]}  f6 {[%clk 0:00:11]} 40. h3 {[%clk 0:00:16]}  Kf7 {[%clk 0:00:11]} 41. Nd8+ {[%clk 0:00:16]}  Ke8 {[%clk 0:00:10]} 42. Ne6 {[%clk 0:00:16]}  Bd6 {[%clk 0:00:10]} 43. Ba7 {[%clk 0:00:12]}  Kf7 {[%clk 0:00:09]} 44. Bd4 {[%clk 0:00:12]}  Ke8 {[%clk 0:00:06]} 45. Ke3 {[%clk 0:00:12]}  Kf7 {[%clk 0:00:07]} 46. Kd3 {[%clk 0:00:12]}  Ne5+ {[%clk 0:00:06]} 47. Bxe5 {[%clk 0:00:07]}  Bxe5 {[%clk 0:00:07]} 48. a4 {[%clk 0:00:05]}  Ke7 {[%clk 0:00:08]} 49. Nd4 {[%clk 0:00:04]}  Kd6 {[%clk 0:00:07]} 50. Ne6 {[%clk 0:00:04]}  Kc6 {[%clk 0:00:06]} 51. Kc2 {[%clk 0:00:04]}  Kb6 {[%clk 0:00:04]} 52. Kb3 {[%clk 0:00:05]}  Bd6 {[%clk 0:00:04]} 53. Nd4 {[%clk 0:00:05]}  Be5 {[%clk 0:00:04]} 54. Nf3 {[%clk 0:00:04]}  Bf4 {[%clk 0:00:04]} 55. Nd4 {[%clk 0:00:05]}  Be5 {[%clk 0:00:04]} 56. Nc2 {[%clk 0:00:05]}  Bd6 {[%clk 0:00:05]} 57. Ne3 {[%clk 0:00:06]}  d4 {[%clk 0:00:04]} 58. Nc4+ {[%clk 0:00:06]}  Kc6 {[%clk 0:00:04]} 59. Nxd6 {[%clk 0:00:07]}  Kxd6 {[%clk 0:00:05]} 60. Kc4 {[%clk 0:00:07]}  Ke5 {[%clk 0:00:06]} 61. Kd3 {[%clk 0:00:07]}  Kd5 {[%clk 0:00:05]} 62. b5 {[%clk 0:00:08]}  axb5 {[%clk 0:00:06]} 63. axb5 {[%clk 0:00:09]}  Kc5 {[%clk 0:00:06]} 64. b6 {[%clk 0:00:07]}  Kxb6 {[%clk 0:00:07]} 65. Kxd4 {[%clk 0:00:08]}  Kc6 {[%clk 0:00:07]} 66. Ke4 {[%clk 0:00:09]}  Kd6 {[%clk 0:00:08]} 67. Kd4 {[%clk 0:00:10]}  Kc6 {[%clk 0:00:08]} 68. Kc4 {[%clk 0:00:10]}  Kd6 {[%clk 0:00:08]} 69. Kb5 {[%clk 0:00:10]}  Ke5 {[%clk 0:00:07]} 70. Kc5 {[%clk 0:00:11]}  Kf4 {[%clk 0:00:08]} 71. Kd6 {[%clk 0:00:12]}  Kg3 {[%clk 0:00:09]} 72. Ke6 {[%clk 0:00:13]}  Kxh3 {[%clk 0:00:10]} 73. Kxf6 {[%clk 0:00:13]}  Kxg4 {[%clk 0:00:10]} 74. Kg6 {[%clk 0:00:14]}  h3 {[%clk 0:00:11]} 75. f6 {[%clk 0:00:15]}  h2 {[%clk 0:00:12]} 76. f7 {[%clk 0:00:16]}  h1=Q {[%clk 0:00:13]} 77. f8=Q {[%clk 0:00:17]}  Qh5+ {[%clk 0:00:13]} 78. Kg7 {[%clk 0:00:17]}  Qh4 {[%clk 0:00:10]} 79. Kg6 {[%clk 0:00:17]}  Kg3 {[%clk 0:00:11]} 80. Qa3+ {[%clk 0:00:16]}  Kh2 {[%clk 0:00:10]} 81. Qb2+ {[%clk 0:00:15]}  Kh3 {[%clk 0:00:11]} 82. Qc3+ {[%clk 0:00:16]}  Kg4 {[%clk 0:00:10]} 83. Qd4+ {[%clk 0:00:13]}  Kf3 {[%clk 0:00:11]} 84. Qf6+ {[%clk 0:00:12]}  Kg4 {[%clk 0:00:10]} 85. Qf5+ {[%clk 0:00:12]}  Kg3 {[%clk 0:00:09]} 86. Qd3+ {[%clk 0:00:11]}  Kh2 {[%clk 0:00:05]} 87. Qe2+ {[%clk 0:00:08]}  Kh1 {[%clk 0:00:06]} 88. Qf1+ {[%clk 0:00:08]}  Kh2 {[%clk 0:00:06]} 89. Qf5 {[%clk 0:00:07]}  g4 {[%clk 0:00:05]} 90. Qf4+ {[%clk 0:00:07]}  Kh3 {[%clk 0:00:05]} 91. Qf1+ {[%clk 0:00:07]}  Kh2 {[%clk 0:00:04]} 92. Qe2+ {[%clk 0:00:06]}  Kh1 {[%clk 0:00:03]} 93. Qf1+ {[%clk 0:00:06]}  Kh2 {[%clk 0:00:04]} 94. Qf4+ {[%clk 0:00:06]}  Kg1 {[%clk 0:00:04]} 95. Qc1+ {[%clk 0:00:05]}  Kg2 {[%clk 0:00:05]} 96. Qd2+ {[%clk 0:00:06]}  Kf3 {[%clk 0:00:05]} 97. Qd1+ {[%clk 0:00:06]}  Kg2 {[%clk 0:00:05]} 98. Qe2+ {[%clk 0:00:06]}  Kg3 {[%clk 0:00:05]} 99. Qe1+ {[%clk 0:00:06]}  Kh3 {[%clk 0:00:06]} 100. Qh1+ {[%clk 0:00:06]}  Kg3 {[%clk 0:00:06]} 101. Qe1+ {[%clk 0:00:07]}  Kh3 {[%clk 0:00:07]} 102. Qh1+ {[%clk 0:00:07]}  Kg3 {[%clk 0:00:08]} 103. Qg1+ {[%clk 0:00:08]}  Kf3 {[%clk 0:00:07]} 104. Qd1+ {[%clk 0:00:08]}  Ke3 {[%clk 0:00:07]} 105. Qe1+ {[%clk 0:00:08]}  Qxe1 {[%clk 0:00:06]} 0-1


[Site "https://www.chess.com"]

[Event "Titled Tuesday Blitz April 19 Early 2022"]
[White "Brodowski, Piotr"]
[Black "Barbashin, Igor"]
[WhiteFideId "1124480"]
[BlackFideId "4155718"]
[WhiteElo "2422"]
[BlackElo "2138"]
[Result "1-0"]
[Round "01"]
[TimeControl "180+1"]
[Date "2022.04.19"]
[WhiteClock "0:00:12"]
[BlackClock "0:00:11"]

1. e4 {[%clk 0:02:57]}  d5 {[%clk 0:02:59]} 2. exd5 {[%clk 0:02:54]}  Nf6 {[%clk 0:02:59]} 3. d4 {[%clk 0:02:49]}  Nxd5 {[%clk 0:02:58]} 4. c4 {[%clk 0:02:45]}  Nb6 {[%clk 0:02:58]} 5. Nc3 {[%clk 0:02:40]}  e5 {[%clk 0:02:50]} 6. dxe5 {[%clk 0:01:58]}  Qxd1+ {[%clk 0:02:49]} 7. Nxd1 {[%clk 0:01:58]}  Nc6 {[%clk 0:02:48]} 8. Nf3 {[%clk 0:01:50]}  Be6 {[%clk 0:02:47]} 9. Ne3 {[%clk 0:01:47]}  Bb4+ {[%clk 0:02:37]} 10. Bd2 {[%clk 0:01:39]}  O-O-O {[%clk 0:02:33]} 11. Bxb4 {[%clk 0:01:31]}  Nxb4 {[%clk 0:02:33]} 12. a3 {[%clk 0:01:30]}  Nc6 {[%clk 0:02:29]} 13. Be2 {[%clk 0:01:21]}  Rhe8 {[%clk 0:02:12]} 14. O-O {[%clk 0:01:19]}  Nd7 {[%clk 0:02:07]} 15. Rfd1 {[%clk 0:01:04]}  Ndxe5 {[%clk 0:02:04]} 16. Nxe5 {[%clk 0:01:04]}  Nxe5 {[%clk 0:02:03]} 17. b3 {[%clk 0:01:05]}  c5 {[%clk 0:01:47]} 18. Kf1 {[%clk 0:01:01]}  g5 {[%clk 0:01:46]} 19. h3 {[%clk 0:00:57]}  Nc6 {[%clk 0:01:34]} 20. Bd3 {[%clk 0:00:42]}  h6 {[%clk 0:01:23]} 21. Rac1 {[%clk 0:00:31]}  b6 {[%clk 0:01:20]} 22. Nd5 {[%clk 0:00:25]}  Nd4 {[%clk 0:01:17]} 23. b4 {[%clk 0:00:22]}  Rd6 {[%clk 0:01:06]} 24. Nf6 {[%clk 0:00:21]}  Red8 {[%clk 0:01:04]} 25. Ne4 {[%clk 0:00:21]}  Rc6 {[%clk 0:00:58]} 26. bxc5 {[%clk 0:00:21]}  bxc5 {[%clk 0:00:58]} 27. Ng3 {[%clk 0:00:15]}  Nb3 {[%clk 0:00:57]} 28. Rc3 {[%clk 0:00:15]}  Rcd6 {[%clk 0:00:54]} 29. Rxb3 {[%clk 0:00:14]}  Rxd3 {[%clk 0:00:54]} 30. Rbxd3 {[%clk 0:00:13]}  Bxc4 {[%clk 0:00:54]} 31. Ke2 {[%clk 0:00:13]}  Bxd3+ {[%clk 0:00:40]} 32. Rxd3 {[%clk 0:00:13]}  Re8+ {[%clk 0:00:40]} 33. Kd2 {[%clk 0:00:13]}  Kc7 {[%clk 0:00:39]} 34. Nf5 {[%clk 0:00:14]}  Re5 {[%clk 0:00:38]} 35. Nxh6 {[%clk 0:00:14]}  f6 {[%clk 0:00:35]} 36. Ng4 {[%clk 0:00:14]}  Re6 {[%clk 0:00:33]} 37. Ne3 {[%clk 0:00:14]}  Kc6 {[%clk 0:00:32]} 38. Kc2 {[%clk 0:00:14]}  Re4 {[%clk 0:00:30]} 39. f3 {[%clk 0:00:13]}  Ra4 {[%clk 0:00:28]} 40. Kb3 {[%clk 0:00:14]}  Rf4 {[%clk 0:00:23]} 41. Nc4 {[%clk 0:00:13]}  a5 {[%clk 0:00:19]} 42. a4 {[%clk 0:00:10]}  g4 {[%clk 0:00:15]} 43. hxg4 {[%clk 0:00:10]}  f5 {[%clk 0:00:12]} 44. gxf5 {[%clk 0:00:10]}  Rxf5 {[%clk 0:00:13]} 45. Nxa5+ {[%clk 0:00:10]}  Kb6 {[%clk 0:00:12]} 46. Nc4+ {[%clk 0:00:11]}  Kc6 {[%clk 0:00:13]} 47. Rd6+ {[%clk 0:00:11]}  Kc7 {[%clk 0:00:12]} 48. Rg6 {[%clk 0:00:11]}  Rf4 {[%clk 0:00:12]} 49. Kc3 {[%clk 0:00:11]}  Rf8 {[%clk 0:00:11]} 50. Rg5 {[%clk 0:00:12]}  Ra8 {[%clk 0:00:11]} 51. Rxc5+ {[%clk 0:00:12]}  Kd8 {[%clk 0:00:12]} 52. a5 {[%clk 0:00:12]}  Ke7 {[%clk 0:00:11]} 53. g4 {[%clk 0:00:12]} 1-0


[Site "https://www.chess.com"]

[Event "Titled Tuesday Blitz April 19 Early 2022"]
[White "Chigaev, Maksim"]
[Black "Di Nicolantonio, Lucas"]
[WhiteFideId "4108116"]
[BlackFideId "680460"]
[WhiteElo "2478"]
[BlackElo "2381"]
[Result "0-1"]
[Round "01"]
[TimeControl "180+1"]
[Date "2022.04.19"]
[WhiteClock "0:00:13"]
[BlackClock "0:00:05"]

1. e4 {[%clk 0:03:00]}  e5 {[%clk 0:02:58]} 2. Nf3 {[%clk 0:03:00]}  Nf6 {[%clk 0:02:58]} 3. d4 {[%clk 0:02:59]}  Nxe4 {[%clk 0:02:58]} 4. dxe5 {[%clk 0:03:00]}  Bb4+ {[%clk 0:02:51]} 5. Nbd2 {[%clk 0:02:56]}  O-O {[%clk 0:02:50]} 6. c3 {[%clk 0:02:43]}  Nxd2 {[%clk 0:02:45]} 7. Bxd2 {[%clk 0:02:44]}  Be7 {[%clk 0:02:40]} 8. Bd3 {[%clk 0:02:44]}  d6 {[%clk 0:02:40]} 9. O-O {[%clk 0:02:39]}  Nc6 {[%clk 0:02:34]} 10. Re1 {[%clk 0:02:20]}  dxe5 {[%clk 0:02:29]} 11. Qc2 {[%clk 0:02:20]}  h6 {[%clk 0:02:09]} 12. Nxe5 {[%clk 0:02:18]}  Nxe5 {[%clk 0:02:10]} 13. Rxe5 {[%clk 0:02:18]}  Bd6 {[%clk 0:02:10]} 14. Ree1 {[%clk 0:02:14]}  Qh4 {[%clk 0:02:00]} 15. g3 {[%clk 0:02:14]}  Qh3 {[%clk 0:02:00]} 16. Be4 {[%clk 0:02:14]}  Rb8 {[%clk 0:01:52]} 17. Rad1 {[%clk 0:02:08]}  Bg4 {[%clk 0:01:50]} 18. Rc1 {[%clk 0:02:06]}  Rfe8 {[%clk 0:01:47]} 19. Bg2 {[%clk 0:02:04]}  Qh5 {[%clk 0:01:45]} 20. Be3 {[%clk 0:02:04]}  Bf3 {[%clk 0:01:42]} 21. Bxa7 {[%clk 0:01:58]}  Bxg2 {[%clk 0:01:26]} 22. Kxg2 {[%clk 0:01:59]}  Ra8 {[%clk 0:01:08]} 23. Bd4 {[%clk 0:01:40]}  Qd5+ {[%clk 0:01:06]} 24. Kg1 {[%clk 0:01:40]}  Qxa2 {[%clk 0:01:02]} 25. c4 {[%clk 0:01:34]}  Bb4 {[%clk 0:00:59]} 26. Rxe8+ {[%clk 0:01:13]}  Rxe8 {[%clk 0:00:56]} 27. Be3 {[%clk 0:01:14]}  Qa5 {[%clk 0:00:50]} 28. Rd1 {[%clk 0:01:14]}  Bc5 {[%clk 0:00:44]} 29. Qf5 {[%clk 0:01:03]}  Bb4 {[%clk 0:00:14]} 30. Qxa5 {[%clk 0:00:44]}  Bxa5 {[%clk 0:00:14]} 31. Rd7 {[%clk 0:00:44]}  Rc8 {[%clk 0:00:14]} 32. Bc5 {[%clk 0:00:42]}  Bb6 {[%clk 0:00:12]} 33. Bxb6 {[%clk 0:00:36]}  cxb6 {[%clk 0:00:13]} 34. b3 {[%clk 0:00:33]}  b5 {[%clk 0:00:11]} 35. cxb5 {[%clk 0:00:34]}  Rc3 {[%clk 0:00:11]} 36. Rxb7 {[%clk 0:00:34]}  Rxb3 {[%clk 0:00:12]} 37. h4 {[%clk 0:00:31]}  h5 {[%clk 0:00:12]} 38. Kf1 {[%clk 0:00:30]}  Rb2 {[%clk 0:00:12]} 39. Ke1 {[%clk 0:00:29]}  g6 {[%clk 0:00:12]} 40. b6 {[%clk 0:00:29]}  Kg7 {[%clk 0:00:12]} 41. Rb8 {[%clk 0:00:29]}  Kf6 {[%clk 0:00:12]} 42. Kd1 {[%clk 0:00:23]}  Rxf2 {[%clk 0:00:07]} 43. Rc8 {[%clk 0:00:21]}  Rb2 {[%clk 0:00:07]} 44. Rc6+ {[%clk 0:00:18]}  Kf5 {[%clk 0:00:08]} 45. Kc1 {[%clk 0:00:18]}  Rb4 {[%clk 0:00:07]} 46. Kc2 {[%clk 0:00:19]}  Kg4 {[%clk 0:00:07]} 47. Kc3 {[%clk 0:00:19]}  Rb1 {[%clk 0:00:07]} 48. Rc4+ {[%clk 0:00:19]}  Kxg3 {[%clk 0:00:07]} 49. Rb4 {[%clk 0:00:20]}  Rc1+ {[%clk 0:00:07]} 50. Kd4 {[%clk 0:00:20]}  Rc8 {[%clk 0:00:08]} 51. Ke5 {[%clk 0:00:21]}  g5 {[%clk 0:00:07]} 52. hxg5 {[%clk 0:00:19]}  h4 {[%clk 0:00:08]} 53. b7 {[%clk 0:00:16]}  Rb8 {[%clk 0:00:04]} 54. Kd6 {[%clk 0:00:16]}  h3 {[%clk 0:00:04]} 55. Kc7 {[%clk 0:00:17]}  Rg8 {[%clk 0:00:04]} 56. b8=Q {[%clk 0:00:12]}  Rxb8 {[%clk 0:00:04]} 57. Kxb8 {[%clk 0:00:13]}  h2 {[%clk 0:00:04]} 58. Kc7 {[%clk 0:00:13]}  h1=Q {[%clk 0:00:04]} 59. Kd7 {[%clk 0:00:12]}  Qd5+ {[%clk 0:00:04]} 60. Ke8 {[%clk 0:00:13]}  Qe6+ {[%clk 0:00:04]} 61. Kf8 {[%clk 0:00:12]}  Qd6+ {[%clk 0:00:04]} 62. Kg8 {[%clk 0:00:13]}  Qxb4 {[%clk 0:00:05]} 0-1


[Site "https://www.chess.com"]

[Event "Titled Tuesday Blitz April 19 Early 2022"]
[White "Constantinou, Peter"]
[Black "Sanal, Vahap"]
[WhiteFideId "413038"]
[BlackFideId "6300545"]
[WhiteElo "2230"]
[BlackElo "2603"]
[Result "0-1"]
[Round "01"]
[TimeControl "180+1"]
[Date "2022.04.19"]
[WhiteClock "0:00:11"]
[BlackClock "0:00:47"]

1. b3 {[%clk 0:03:00]}  d5 {[%clk 0:02:58]} 2. Bb2 {[%clk 0:03:01]}  Bf5 {[%clk 0:02:57]} 3. d3 {[%clk 0:03:01]}  e6 {[%clk 0:02:57]} 4. Nd2 {[%clk 0:02:59]}  h6 {[%clk 0:02:57]} 5. e4 {[%clk 0:02:58]}  Bh7 {[%clk 0:02:50]} 6. g3 {[%clk 0:02:59]}  c6 {[%clk 0:02:45]} 7. Bg2 {[%clk 0:02:58]}  Nf6 {[%clk 0:02:45]} 8. Nh3 {[%clk 0:02:58]}  Bb4 {[%clk 0:02:36]} 9. O-O {[%clk 0:02:52]}  Bxd2 {[%clk 0:02:37]} 10. Qxd2 {[%clk 0:02:52]}  dxe4 {[%clk 0:02:37]} 11. Bxf6 {[%clk 0:02:48]}  Qxf6 {[%clk 0:02:34]} 12. dxe4 {[%clk 0:02:47]}  Nd7 {[%clk 0:02:29]} 13. f4 {[%clk 0:02:44]}  Qe7 {[%clk 0:02:23]} 14. Nf2 {[%clk 0:02:43]}  O-O {[%clk 0:02:12]} 15. Rad1 {[%clk 0:02:42]}  Rfd8 {[%clk 0:02:12]} 16. Qe3 {[%clk 0:02:40]}  a5 {[%clk 0:02:08]} 17. a4 {[%clk 0:02:36]}  Qc5 {[%clk 0:02:06]} 18. Qe2 {[%clk 0:02:31]}  Nf6 {[%clk 0:01:53]} 19. g4 {[%clk 0:02:09]}  g5 {[%clk 0:01:44]} 20. f5 {[%clk 0:02:05]}  e5 {[%clk 0:01:40]} 21. Bf3 {[%clk 0:02:00]}  Kg7 {[%clk 0:01:39]} 22. Kg2 {[%clk 0:02:00]}  Ne8 {[%clk 0:01:39]} 23. Nd3 {[%clk 0:01:53]}  Qc3 {[%clk 0:01:39]} 24. Qd2 {[%clk 0:01:51]}  Qxd2+ {[%clk 0:01:39]} 25. Rxd2 {[%clk 0:01:51]}  f6 {[%clk 0:01:39]} 26. Rfd1 {[%clk 0:01:52]}  b6 {[%clk 0:01:32]} 27. Be2 {[%clk 0:01:48]}  Kf8 {[%clk 0:01:29]} 28. h4 {[%clk 0:01:44]}  Bg8 {[%clk 0:01:29]} 29. Nb2 {[%clk 0:01:43]}  Rxd2 {[%clk 0:01:26]} 30. Rxd2 {[%clk 0:01:43]}  Ke7 {[%clk 0:01:23]} 31. Bc4 {[%clk 0:01:34]}  Nd6 {[%clk 0:01:21]} 32. Bxg8 {[%clk 0:01:34]}  Rxg8 {[%clk 0:01:22]} 33. Kf3 {[%clk 0:01:29]}  gxh4 {[%clk 0:01:07]} 34. Rh2 {[%clk 0:00:41]}  h5 {[%clk 0:01:07]} 35. gxh5 {[%clk 0:00:42]}  Rg3+ {[%clk 0:01:07]} 36. Ke2 {[%clk 0:00:41]}  h3 {[%clk 0:01:06]} 37. h6 {[%clk 0:00:36]}  Kf7 {[%clk 0:01:06]} 38. Nc4 {[%clk 0:00:15]}  Nxe4 {[%clk 0:01:06]} 39. Kf1 {[%clk 0:00:12]}  Rf3+ {[%clk 0:01:03]} 40. Ke1 {[%clk 0:00:11]}  b5 {[%clk 0:00:59]} 41. axb5 {[%clk 0:00:11]}  cxb5 {[%clk 0:01:00]} 42. Nxa5 {[%clk 0:00:12]}  Kg8 {[%clk 0:00:48]} 43. c4 {[%clk 0:00:12]}  bxc4 {[%clk 0:00:48]} 44. bxc4 {[%clk 0:00:13]}  Ra3 {[%clk 0:00:48]} 45. Nc6 {[%clk 0:00:13]}  Ra1+ {[%clk 0:00:48]} 46. Ke2 {[%clk 0:00:10]}  Ra2+ {[%clk 0:00:48]} 47. Ke3 {[%clk 0:00:11]}  Rxh2 {[%clk 0:00:49]} 48. Kxe4 {[%clk 0:00:12]}  Ra2 {[%clk 0:00:47]} 49. Ne7+ {[%clk 0:00:11]}  Kh7 {[%clk 0:00:47]} 0-1


[Site "https://www.chess.com"]

[Event "Titled Tuesday Blitz April 19 Early 2022"]
[White "Czerw, Dawid"]
[Black "Kamsky, Gata"]
[WhiteFideId "1145746"]
[BlackFideId "2000024"]
[WhiteElo "2125"]
[BlackElo "2645"]
[Result "0-1"]
[Round "01"]
[TimeControl "180+1"]
[Date "2022.04.19"]
[WhiteClock "0:00:01"]
[BlackClock "0:00:15"]

1. d4 {[%clk 0:02:59]}  Nf6 {[%clk 0:02:58]} 2. c4 {[%clk 0:02:57]}  e6 {[%clk 0:02:58]} 3. g3 {[%clk 0:02:54]}  d5 {[%clk 0:02:55]} 4. Bg2 {[%clk 0:02:52]}  Bb4+ {[%clk 0:02:55]} 5. Bd2 {[%clk 0:02:52]}  Be7 {[%clk 0:02:55]} 6. Nf3 {[%clk 0:02:51]}  O-O {[%clk 0:02:55]} 7. O-O {[%clk 0:02:51]}  Nbd7 {[%clk 0:02:53]} 8. Qc2 {[%clk 0:02:39]}  c6 {[%clk 0:02:51]} 9. b4 {[%clk 0:02:32]}  Ne4 {[%clk 0:02:44]} 10. Rc1 {[%clk 0:02:21]}  Nxd2 {[%clk 0:02:43]} 11. Qxd2 {[%clk 0:02:18]}  dxc4 {[%clk 0:02:30]} 12. Rxc4 {[%clk 0:02:16]}  a5 {[%clk 0:02:30]} 13. bxa5 {[%clk 0:02:06]}  Qxa5 {[%clk 0:02:28]} 14. Qxa5 {[%clk 0:01:57]}  Rxa5 {[%clk 0:02:26]} 15. Nbd2 {[%clk 0:01:57]}  e5 {[%clk 0:02:10]} 16. e3 {[%clk 0:01:33]}  exd4 {[%clk 0:02:02]} 17. exd4 {[%clk 0:01:18]}  Nb6 {[%clk 0:02:00]} 18. Rc2 {[%clk 0:01:15]}  Nd5 {[%clk 0:01:59]} 19. Rb2 {[%clk 0:01:08]}  Rd8 {[%clk 0:01:50]} 20. Nc4 {[%clk 0:00:56]}  Ra4 {[%clk 0:01:46]} 21. Ne3 {[%clk 0:00:42]}  Nxe3 {[%clk 0:01:42]} 22. fxe3 {[%clk 0:00:42]}  g6 {[%clk 0:01:30]} 23. Kf2 {[%clk 0:00:25]}  f5 {[%clk 0:01:27]} 24. Rd1 {[%clk 0:00:18]}  Kg7 {[%clk 0:01:25]} 25. Rdb1 {[%clk 0:00:18]}  Bf6 {[%clk 0:01:19]} 26. Rc2 {[%clk 0:00:14]}  Re8 {[%clk 0:01:12]} 27. Rb3 {[%clk 0:00:13]}  Kh6 {[%clk 0:01:06]} 28. Ne1 {[%clk 0:00:13]}  Re7 {[%clk 0:01:04]} 29. h4 {[%clk 0:00:13]}  Be6 {[%clk 0:01:04]} 30. Rbb2 {[%clk 0:00:14]}  Bc4 {[%clk 0:00:58]} 31. Nf3 {[%clk 0:00:12]}  Kg7 {[%clk 0:00:53]} 32. Nd2 {[%clk 0:00:12]}  Bf7 {[%clk 0:00:50]} 33. Nb3 {[%clk 0:00:12]}  Ra3 {[%clk 0:00:47]} 34. Re2 {[%clk 0:00:10]}  Bc4 {[%clk 0:00:44]} 35. Rec2 {[%clk 0:00:09]}  Bb5 {[%clk 0:00:32]} 36. Rd2 {[%clk 0:00:06]}  h6 {[%clk 0:00:29]} 37. Rdc2 {[%clk 0:00:06]}  g5 {[%clk 0:00:29]} 38. hxg5 {[%clk 0:00:07]}  hxg5 {[%clk 0:00:28]} 39. Rd2 {[%clk 0:00:07]}  Kg6 {[%clk 0:00:28]} 40. Bh3 {[%clk 0:00:07]}  Bg7 {[%clk 0:00:26]} 41. Rdc2 {[%clk 0:00:06]}  Rf7 {[%clk 0:00:26]} 42. Rc5 {[%clk 0:00:03]}  Bd3 {[%clk 0:00:22]} 43. Rd2 {[%clk 0:00:02]}  Be4 {[%clk 0:00:22]} 44. Rc3 {[%clk 0:00:02]}  Bd5 {[%clk 0:00:18]} 45. Rc1 {[%clk 0:00:01]}  Re7 {[%clk 0:00:17]} 46. Rb2 {[%clk 0:00:01]}  g4 {[%clk 0:00:16]} 47. Rc3 {[%clk 0:00:01]}  gxh3 {[%clk 0:00:15]} 0-1


[Site "https://www.chess.com"]

[Event "Titled Tuesday Blitz April 19 Early 2022"]
[White "D`Arruda, Ricardo D."]
[Black "Kozak, Antoni"]
[WhiteFideId "100692"]
[BlackFideId "21832030"]
[WhiteElo "2313"]
[BlackElo "2236"]
[Result "1/2-1/2"]
[Round "01"]
[TimeControl "180+1"]
[Date "2022.04.19"]
[WhiteClock "0:00:44"]
[BlackClock "0:00:04"]

1. Nf3 {[%clk 0:02:59]}  d5 {[%clk 0:02:57]} 2. d4 {[%clk 0:03:00]}  c6 {[%clk 0:02:56]} 3. c4 {[%clk 0:03:00]}  Nf6 {[%clk 0:02:56]} 4. e3 {[%clk 0:03:01]}  e6 {[%clk 0:02:49]} 5. Nc3 {[%clk 0:03:01]}  Nbd7 {[%clk 0:02:48]} 6. Bd3 {[%clk 0:03:01]}  dxc4 {[%clk 0:02:44]} 7. Bxc4 {[%clk 0:03:00]}  b5 {[%clk 0:02:43]} 8. Bb3 {[%clk 0:03:00]}  b4 {[%clk 0:02:36]} 9. Na4 {[%clk 0:02:57]}  Ba6 {[%clk 0:02:34]} 10. Qc2 {[%clk 0:02:54]}  Rc8 {[%clk 0:02:30]} 11. Bc4 {[%clk 0:02:46]}  Qa5 {[%clk 0:02:07]} 12. b3 {[%clk 0:02:43]}  c5 {[%clk 0:02:01]} 13. Bxa6 {[%clk 0:02:39]}  Qxa6 {[%clk 0:02:00]} 14. dxc5 {[%clk 0:02:33]}  Bxc5 {[%clk 0:01:54]} 15. Qe2 {[%clk 0:02:33]}  Qxe2+ {[%clk 0:01:42]} 16. Kxe2 {[%clk 0:02:32]}  Bd6 {[%clk 0:01:41]} 17. Bd2 {[%clk 0:02:25]}  Ke7 {[%clk 0:01:34]} 18. Rhc1 {[%clk 0:02:24]}  e5 {[%clk 0:01:18]} 19. Rxc8 {[%clk 0:02:18]}  Rxc8 {[%clk 0:01:17]} 20. Rc1 {[%clk 0:02:19]}  Rxc1 {[%clk 0:01:16]} 21. Bxc1 {[%clk 0:02:20]}  Ne4 {[%clk 0:01:10]} 22. Bb2 {[%clk 0:02:18]}  Ke6 {[%clk 0:01:10]} 23. Nd2 {[%clk 0:02:16]}  Nxd2 {[%clk 0:01:06]} 24. Kxd2 {[%clk 0:02:17]}  Kd5 {[%clk 0:01:04]} 25. f3 {[%clk 0:02:14]}  f5 {[%clk 0:01:04]} 26. h3 {[%clk 0:02:05]}  g6 {[%clk 0:01:04]} 27. Ba1 {[%clk 0:01:43]}  e4 {[%clk 0:01:02]} 28. Nb2 {[%clk 0:01:39]}  Be5 {[%clk 0:01:00]} 29. Kc2 {[%clk 0:01:28]}  Nc5 {[%clk 0:00:49]} 30. Kb1 {[%clk 0:01:28]}  Bxb2 {[%clk 0:00:30]} 31. Bxb2 {[%clk 0:01:29]}  Nd3 {[%clk 0:00:31]} 32. f4 {[%clk 0:01:22]}  Ne1 {[%clk 0:00:29]} 33. g3 {[%clk 0:01:22]}  Ng2 {[%clk 0:00:13]} 34. Bc1 {[%clk 0:01:22]}  Ne1 {[%clk 0:00:14]} 35. Bd2 {[%clk 0:01:20]}  Nd3 {[%clk 0:00:14]} 36. Kc2 {[%clk 0:01:20]}  a5 {[%clk 0:00:14]} 37. Bc1 {[%clk 0:01:08]}  Kc5 {[%clk 0:00:14]} 38. Bd2 {[%clk 0:01:08]}  Kb5 {[%clk 0:00:14]} 39. Bc1 {[%clk 0:01:08]}  a4 {[%clk 0:00:15]} 40. Bd2 {[%clk 0:01:09]}  Nc5 {[%clk 0:00:11]} 41. g4 {[%clk 0:01:02]}  Nd7 {[%clk 0:00:10]} 42. Be1 {[%clk 0:01:01]}  Nf6 {[%clk 0:00:10]} 43. g5 {[%clk 0:01:00]}  Nd5 {[%clk 0:00:10]} 44. Bd2 {[%clk 0:01:00]}  Nc7 {[%clk 0:00:08]} 45. Kb2 {[%clk 0:01:00]}  Ne6 {[%clk 0:00:06]} 46. Kc2 {[%clk 0:01:00]}  Nc5 {[%clk 0:00:07]} 47. Be1 {[%clk 0:00:58]}  Nd3 {[%clk 0:00:07]} 48. Bd2 {[%clk 0:00:56]}  Nf2 {[%clk 0:00:07]} 49. h4 {[%clk 0:00:56]}  Ng4 {[%clk 0:00:07]} 50. Kd1 {[%clk 0:00:54]}  Nh2 {[%clk 0:00:06]} 51. Be1 {[%clk 0:00:52]}  Nf1 {[%clk 0:00:04]} 52. Bf2 {[%clk 0:00:51]}  Nh2 {[%clk 0:00:03]} 53. Bg3 {[%clk 0:00:49]}  Ng4 {[%clk 0:00:03]} 54. Ke2 {[%clk 0:00:47]}  h6 {[%clk 0:00:04]} 55. Be1 {[%clk 0:00:45]}  h5 {[%clk 0:00:03]} 56. Bg3 {[%clk 0:00:44]}  Ka5 {[%clk 0:00:03]} 57. Kd2 {[%clk 0:00:44]}  Kb5 {[%clk 0:00:02]} 58. Ke2 {[%clk 0:00:44]}  a3 {[%clk 0:00:02]} 59. Kd2 {[%clk 0:00:44]}  Kc5 {[%clk 0:00:02]} 60. Ke2 {[%clk 0:00:44]}  Kb5 {[%clk 0:00:03]} 61. Kd2 {[%clk 0:00:44]}  Kc5 {[%clk 0:00:03]} 62. Ke2 {[%clk 0:00:44]}  Kb5 {[%clk 0:00:04]} 1/2-1/2


[Site "https://www.chess.com"]